Cogmind - Beta 10.2 @@@ ROGUE MODE // 2020.10.31 @ 15:19:30 // Halloween2020/ForbiddenLore Player: Trione Result: Destroyed by S-27 Virus with Autogun Performance ------------- Evolutions (6) 3000 Regions Visited (25) 5000 Robots Destroyed (428) 2140 Value Destroyed (14790) 14790 Prototype IDs (62) 1240 Alien Tech Used (0) 0 Bonus (10450) 10450 TOTAL SCORE: 36620 Bonus ------- High Alert Combat Kills 3512 Follower Combat Kills 1659 Network Hubs Disabled 200 Met Imprinter 300 Triggered Deep Caves Wall 500 Exposed GOLEM Chamber 500 Met Warlord at Base 500 MAIN.C Attacked Warlord 500 Warlord Defense Kill 2928 A7 Reached Mainframe 300 Met R17 at Cetus 500 Friendly Fire -949 Cogmind --------- Core Integrity 0/1150 Matter 300/300 Energy 70/100 System Corruption 18% Temperature Cool (0) Movement Hovering (80) Location -4/Upper Caves Parts ------- > --- POWER (2) -------- (None) > --- PROPULSION (6) --- Combat Gravmag System > --- UTILITY (4) ------ Advanced Signal Interpreter Quantum Capacitor Advanced System Shield > --- WEAPON (7) ------- Heavy Mace > --- INVENTORY (4) ---- Large Storage Unit Compact Matter Pod (146) Peak State ------------ > --- POWER ------------ Light Ion Engine Micro Fission Core > --- PROPULSION ------- Centrium Heavy Treads Enhanced Flexi-carbon Leg Enhanced Biometal Leg Enhanced Biometal Leg Experimental Myomer Leg > --- UTILITY ---------- Coolant Network High-capacity Storage Unit High-capacity Storage Unit > --- WEAPON ----------- Heavy Gatling Laser Gauss Rifle KE Penetrator Helical Railgun Helical Railgun Phasing Sabre Lance > --- INVENTORY -------- Advanced Medium Treads Zionite Biocell Zionite Biocell Medium Matter Pod Improved Matter Compressor Experimental Phase Shifter Improved Medium Armor Plating Medium Reactive Plating Thermal Barrier Experimental Shock Absorption System EM Dispersion Field EM Dispersion Field Zionite Phaser-S HERF Cannon EMDS Heavy Missile Launcher Rocket Array Power Maul [Rating: 139] Favorites ----------- Power Quantum Reactor Engine Heavy Ion Engine Power Core Neutrino Core Reactor Quantum Reactor Propulsion Light Treads Treads Light Treads Leg Assembled Alloy Leg Wheel Compact Wheel Hover Unit Antigrav System Flight Unit Field Propulsion Drive Utility High-capacity Storage Unit Device Improved Heat Sink Storage High-capacity Storage Unit Processor Advanced Signal Interpreter Hackware Advanced System Shield Protection Medium Armor Plating Weapon Assembled Focal Cannon Energy Gun Lightning Gun Energy Cannon Assembled Focal Cannon Ballistic Gun Flak Gun Ballistic Cannon Heavy Flak Cannon Launcher Advanced EMP Blaster Impact Weapon Power Maul Slashing Weapon Phasing Sabre Piercing Weapon Lance Build | -11 -10 -10 -9 -9 -9 -8 -8 -7 -7 -7 -7 -7 -6 -6 -6 -6 -6 -6 -5 -5 -5 -5 -4 -4 -4 ------- Run | Scr Mat Min Mat Min Exi Min Mat Fac Low Low Zio Dee Pro Fac Ext Cet Arc Hub Fac Upp Upp War Pro Fac Upp Slots Evolved 12 | . . . 2 . . . 2 2 . . . . . 2 . . . . 2 . . . . 2 . Power 1 | . . . . . . . . . . . . . . 1 . . . . . . . . . . . Propulsion 4 | . . . . . . . . 1 . . . . . . . . . . 1 . . . . 2 . Utility 2 | . . . 2 . . . . . . . . . . . . . . . . . . . . . . Weapon 5 | . . . . . . . 2 1 . . . . . 1 . . . . 1 . . . . . . Parts Attached 370 | 5 4 8 8 3 . . 18 5 4 1 15 39 7 12 . 17 4 20 42 11 5 42 5 91 4 Power 26 | 1 . 1 1 . . . . . . . 1 1 1 2 . 5 . 1 1 . . 3 . 8 . Engine 4 | 1 . 1 1 . . . . . . . . . . . . . . . . . . . . 1 . Core 9 | . . . . . . . . . . . 1 . 1 2 . . . . . . . . . 5 . Reactor 13 | . . . . . . . . . . . . 1 . . . 5 . 1 1 . . 3 . 2 . Propulsion 52 | 2 2 2 . . . . 2 1 . . . 2 1 . . 2 1 4 4 1 . 6 . 21 1 Treads 14 | . . . . . . . 2 . . . . . . . . 2 1 2 1 1 . 1 . 4 . Leg 20 | . . . . . . . . . . . . 2 1 . . . . 2 3 . . 5 . 7 . Wheel 7 | 2 2 2 . . . . . 1 . . . . . . . . . . . . . . . . . Hover 10 | . . . . . . . . . . . . . . . . . . . . . . . . 9 1 Flight 1 | . . . . . . . . . . . . . . . . . . . . . . . . 1 . Utility 118 | . 1 . 4 . . . 5 . . 1 12 20 2 4 . 3 1 7 7 2 1 20 3 24 1 Device 55 | . 1 . . . . . 3 . . . 1 7 . 2 . 1 1 3 1 1 . 17 2 14 1 Storage 20 | . . . 2 . . . . . . 1 2 8 . 2 . . . . 1 . . . . 4 . Processor 9 | . . . . . . . . . . . 6 . . . . . . . 1 . . 1 . 1 . Hackware 2 | . . . . . . . . . . . . . . . . . . . . . . 1 . 1 . Protection 32 | . . . 2 . . . 2 . . . 3 5 2 . . 2 . 4 4 1 1 1 1 4 . Artifact . | . . . . . . . . . . . . . . . . . . . . . . . . . . Weapon 174 | 2 1 5 3 3 . . 11 4 4 . 2 16 3 6 . 7 2 8 30 8 4 13 2 38 2 Energy Gun 66 | 1 1 3 3 . . . 5 . 1 . 1 9 1 3 . 2 1 1 12 5 1 5 . 9 2 Energy Cannon 17 | . . . . . . . . . . . . . . . . . . 2 3 . . 1 . 11 . Ballistic Gun 40 | 1 . . . 2 . . 3 2 2 . . 3 . 2 . 4 1 2 6 2 1 2 1 6 . Ballistic Cannon 2 | . . . . . . . . . . . . . . 1 . . . . 1 . . . . . . Launcher 25 | . . . . 1 . . 3 1 1 . . 3 2 . . 1 . 1 4 . 1 1 . 6 . Special Weapon . | . . . . . . . . . . . . . . . . . . . . . . . . . . Impact Weapon 10 | . . 1 . . . . . 1 . . . . . . . . . . 2 1 . 3 . 2 . Slashing Weapon 12 | . . 1 . . . . . . . . 1 1 . . . . . 2 2 . 1 . . 4 . Piercing Weapon 2 | . . . . . . . . . . . . . . . . . . . . . . 1 1 . . Special Melee Weapon . | . . . . . . . . . . . . . . . . . . . . . . . . . . Unidentified Prototypes 54 | . . . 3 . . . 2 1 . . 7 10 . . . 4 . 5 4 . . 14 . 4 . Parts Lost 95 | . 1 2 . . . 1 3 . 1 . . 5 3 . . 2 2 4 7 1 . 7 1 52 3 Power 9 | . . . . . . . . . . . . . 1 . . . . . 1 . . 2 1 3 1 Propulsion 28 | . 1 2 . . . 1 1 . . . . 2 . . . . . 1 . . . 3 . 17 . Utility 16 | . . . . . . . 1 . . . . 2 2 . . 1 . 1 1 . . 1 . 7 . Weapon 42 | . . . . . . . 1 . 1 . . 1 . . . 1 2 2 5 1 . 1 . 25 2 Highest Loss Streak 19 | . 1 2 . . . 1 1 . 1 . . 3 2 . . 2 2 3 2 1 . 4 1 19 3 Average Slot Usage (%) 90 | . 74 74 88 100 100 94 91 97 100 100 98 93 99 99 100 93 89 89 83 90 94 82 79 72 41 Engine 2 | . 14 14 11 11 11 11 9 7 7 7 6 . . . . . . . . . . . . . . Core 2 | . . . . . . . . . . . . 5 . 12 13 1 . . . . . . . 7 5 Reactor 3 | . . . . . . . . . . . . 1 6 . . 11 13 13 10 11 11 8 2 . . Treads 6 | . . . . . . . 8 15 15 15 15 6 . . . 2 10 10 5 5 5 3 5 3 . Leg 9 | . . . . . . . . . . . . 11 22 20 20 13 2 1 10 11 11 13 11 9 . Wheel 3 | . 23 17 22 22 22 16 3 4 7 7 7 4 . . . . . . . . . . . . . Device 5 | . 8 14 11 11 11 11 9 7 7 7 4 3 . 5 6 4 6 6 4 5 1 4 5 5 2 Storage 14 | . . . 21 22 22 22 18 15 15 15 14 17 23 20 20 13 13 13 11 11 11 11 11 8 . Protection 4 | . . . 1 11 11 11 7 7 7 7 8 4 7 . . 5 6 5 5 4 9 5 . 1 . Energy Gun 10 | . 14 13 14 11 11 11 16 15 7 7 9 15 13 2 . 6 3 5 8 24 24 15 9 4 5 Energy Cannon 7 | . . . . . . . . . . . . 13 23 20 20 16 13 10 2 . . . . 6 . Ballistic Gun 11 | . 14 1 . 11 11 11 18 17 29 30 27 7 . 12 13 8 17 18 5 1 4 . 12 7 . Impact Weapon 1 | . . 12 7 . . . . 4 . . . . . . . . . . 3 5 5 4 5 1 5 Slashing Weapon 1 | . . . . . . . . . . . . . . . . . . 1 2 . 4 5 5 2 . Naked Turns 17 | . . . . . . . . . . . . . . . . . . . . . . . . 17 . Heaviest Build 177 | 8 9 19 54 55 55 55 63 65 68 84 95 117 120 153 153 176 167 177 177 153 163 163 120 140 24 Greatest Support 113 | 26 26 20 20 20 20 20 40 40 40 40 40 84 84 84 84 84 103 108 80 80 60 110 80 113 42 Greatest Overweight (x) 38 | . . 6 2 2 2 5 6 4 1 2 2 33 38 1 1 2 2 5 2 2 2 2 2 5 . Average Overweight (x) 1 | . . . 1 2 2 3 2 1 1 1 1 1 1 1 1 1 1 1 1 1 2 1 1 . . Largest Inventory Capacity 20 | 4 4 4 16 16 16 16 16 16 16 18 18 18 18 20 20 20 20 20 20 20 20 20 20 20 4 Average Capacity 17 | 4 4 4 15 16 16 16 16 16 16 16 17 14 18 19 20 20 20 20 20 20 20 20 20 17 4 Most Carried 20 | 3 4 4 16 16 16 16 16 16 16 17 18 18 18 20 20 20 20 20 20 20 20 20 20 20 4 Average Carried 16 | 1 3 3 9 15 16 16 15 15 15 16 17 14 17 18 20 19 19 19 19 19 19 19 18 14 3 Final Capacity 20 | 4 4 4 16 16 16 16 16 16 16 18 18 18 18 20 20 20 20 20 20 20 20 20 20 4 4 Final Carried 20 | 3 4 4 16 16 16 16 16 16 16 17 18 18 17 20 20 19 20 20 20 19 20 18 18 4 2 Class Distribution -------------------- 25% | Scavenger-Tank 20% | Scavenger-Mutant 11% | Mutant 9% | Scavenger-Executioner 5% | Gunner 4% | Tank 4% | Scavenger-Gunner 4% | Hauler-Gunner 4% | Golem 3% | Hauler-Executioner Dominant Class ---------------- Mutant | -10/Materials Mutant | -10/Mines Mutant | -9/Materials Mutant | -9/Mines Mutant | -9/Exiles Mutant | -8/Mines Tank | -8/Materials Scavenger-Tank | -7/Factory Scavenger-Tank | -7/Lower Caves Scavenger-Tank | -7/Lower Caves Scavenger-Tank | -7/Zion Scavenger-Tank | -7/Deep Caves Tank | -6/Proximity Caves Hauler-Gunner | -6/Factory Hauler-Gunner | -6/Extension Hauler-Executioner | -6/Cetus Scavenger-Executioner | -6/Archives Scavenger-Executioner | -6/Hub_04(d) Scavenger-Mutant | -5/Factory Scavenger-Executioner | -5/Upper Caves Scavenger-Mutant | -5/Upper Caves Scavenger-Mutant | -5/Warlord Scavenger-Mutant | -4/Proximity Caves Scavenger-Mutant | -4/Factory Mutant | -4/Upper Caves Resources | -11 -10 -10 -9 -9 -9 -8 -8 -7 -7 -7 -7 -7 -6 -6 -6 -6 -6 -6 -5 -5 -5 -5 -4 -4 -4 ----------- Run | Scr Mat Min Mat Min Exi Min Mat Fac Low Low Zio Dee Pro Fac Ext Cet Arc Hub Fac Upp Upp War Pro Fac Upp Matter Collected 8989 | 166 138 88 50 125 . 25 511 88 74 10 291 578 397 280 112 286 164 494 1441 173 112 539 211 2371 265 Remotely . | . . . . . . . . . . . . . . . . . . . . . . . . . . Salvage Created 19960 | . 213 174 297 304 . 81 986 259 149 . 176 1896 338 974 465 1368 393 1247 3342 653 122 1087 238 5101 97 Parts 802 | . 7 10 18 19 . 10 52 6 12 . 14 40 11 48 12 57 21 57 126 7 2 37 16 219 1 Haulers Intercepted 17 | . 1 . 1 . . . 4 . . . . . . 1 1 . . 3 3 . . . . 3 . Recyclers Shooed 17 | . . 1 . 1 . . 1 2 . . . . . 1 . . . 1 1 . . . . 9 . Parts Field Recycled . | . . . . . . . . . . . . . . . . . . . . . . . . . . Retrieved Matter . | . . . . . . . . . . . . . . . . . . . . . . . . . . Parts Self-Destructed 134 | . . . . . . . . . 11 . . . 9 . . . . . . 4 3 89 16 . 2 Prevented 30 | . . . . . . . . . 1 . . . 2 . . . . . . 1 2 24 . . . Kills | -11 -10 -10 -9 -9 -9 -8 -8 -7 -7 -7 -7 -7 -6 -6 -6 -6 -6 -6 -5 -5 -5 -5 -4 -4 -4 ------- Run | Scr Mat Min Mat Min Exi Min Mat Fac Low Low Zio Dee Pro Fac Ext Cet Arc Hub Fac Upp Upp War Pro Fac Upp Combat Hostiles Destroyed 290 | . 2 1 5 7 . 5 11 1 5 . 2 52 8 7 6 22 4 13 40 4 3 27 11 53 1 Melee 9 | . . . 2 . . . . . . . . . . . . . . . . . . . . 6 1 Guns 89 | . 1 1 3 4 . 3 11 1 1 . 2 6 1 . . 1 3 6 7 3 2 2 7 24 . Cannons 40 | . . . . . . . . . . . . 1 2 7 6 . 1 2 12 . . 1 . 8 . AOE 119 | . . . . 3 . 2 . . 4 . . 40 5 . . 9 . 4 12 . 1 24 4 11 . Classes Destroyed 26 | . 3 2 2 1 . . 3 . 1 . 2 5 1 . . 1 . . 1 . . 4 . . . Worker 38 | . . 2 . 1 . . 1 . . . . . . 1 . . . 5 8 . . . . 20 . Builder 16 | . . . . . . . 1 . . . . . . . . . . . 4 . . . . 11 . Tunneler 5 | . . 1 . . . . 1 . . . . . . . . . . . 2 . . . . 1 . Hauler 17 | . 1 . 1 . . . 4 . . . . . . 1 1 . . 3 3 . . . . 3 . Recycler 33 | . 1 1 . 1 . . 3 2 . . . . . 3 . . . 1 7 . . . . 14 . Mechanic 1 | . . . . . . . . . . . . . . . . . . . . . . 1 . . . Operator 7 | . . . . . . . . . . . . . . 1 2 . 2 1 . . . . . 1 . Watcher 9 | . . . 1 . . . . . . . . . . 2 . 2 . 2 1 . . . . 1 . Swarmer 56 | . . . . 3 . 5 3 . 4 . . . 4 . . 7 . 4 8 . 1 5 9 2 1 Saboteur 1 | . . . . . . . . . . . . . . . . . . . 1 . . . . . . Grunt 77 | . 2 1 4 4 . . 5 . . . . . 3 3 5 5 . 1 10 2 1 13 . 18 . Brawler 9 | . . . 1 . . . . . . . . . . 1 . . . . 1 1 . 2 . 3 . Duelist 7 | . . . . . . . . . . . . . . . . 1 . . 3 . . 1 . 2 . Protector 2 | . . . . . . . . . . . . . . . . . . . . . . 1 . 1 . Sentry 16 | . . . . . . . 2 1 . . . . 1 . . . 4 1 1 1 1 . . 4 . Specialist 2 | . . . . . . . . . . . . . . . . . . . . . . 2 . . . Hunter 28 | . . . . . . . 1 . . . . . . . . 3 . 4 10 . . 2 . 8 . Programmer 27 | . . . . . . . . . 1 . . . . 3 . 1 . . 5 . . . 2 15 . Cetus Guard 5 | . . . . . . . . . . . . . . . . 5 . . . . . . . . . Enhanced Grunt 1 | . . . . . . . . . . . . 1 . . . . . . . . . . . . . Lightning 3 | . . . . . . . . . . . . . . . . . . 3 . . . . . . . Striker 1 | . . . . . . . . . . . . . . . . . . . . . . 1 . . . Zionite 4 | . . . . . . . . . . . 4 . . . . . . . . . . . . . . Z-Technician 1 | . . . . . . . . . . . . 1 . . . . . . . . . . . . . Z-Light 5 | . . . . . . . . . . . . 5 . . . . . . . . . . . . . Packrat 3 | . . . . . . . . . . . . . . . . . . . . 2 . . . . 1 Tinkerer 1 | . . . . . . . . . . . . . 1 . . . . . . . . . . . . Assembler 1 | . . . . . . . . . . . . 1 . . . . . . . . . . . . . Assembled 39 | . . . . . . . . . . . . 39 . . . . . . . . . . . . . Golem 9 | . . . . . . . . . . . . 8 . . . . . . 1 . . . . . . Savage 2 | . . . . . . . . . . . . . . . 1 1 . . . . . . . . . Mutant 1 | . . . . . . . . . . . 1 . . . . . . . . . . . . . . Best Kill Streak 38 | . 2 3 4 5 . 4 5 1 4 . 3 38 4 4 3 6 5 10 16 2 3 13 5 21 1 Combat Bots Only 38 | . 2 1 4 4 . 4 4 1 4 . 1 38 4 4 3 6 4 4 11 2 3 12 5 11 1 Max Kills in Single Turn 8 | . 1 1 1 3 . 2 2 1 3 . 2 8 2 1 2 4 1 5 4 1 2 7 4 4 1 Gunslinging 1 | . . . . . . . 1 . . . . . . . . . . . . . 1 . 1 1 . Exploded 8 | . . . . 3 . 2 . . 3 . . 8 2 . . 4 . 2 4 . 1 7 4 2 . Melee 1 | . . . 1 . . . . . . . . . . . . . . . . . . . . 1 1 Uniques/NPCs Destroyed 1 | . . . . . . . . . . . 1 . . . . . . . . . . . . . . Imprinter (-7/Zion) Combat | -11 -10 -10 -9 -9 -9 -8 -8 -7 -7 -7 -7 -7 -6 -6 -6 -6 -6 -6 -5 -5 -5 -5 -4 -4 -4 -------- Run | Scr Mat Min Mat Min Exi Min Mat Fac Low Low Zio Dee Pro Fac Ext Cet Arc Hub Fac Upp Upp War Pro Fac Upp Damage Taken 20707 | . 242 317 54 120 . 159 512 46 93 . . 1455 818 133 438 761 233 1188 2344 218 390 2417 397 7822 550 Core 2391 | . 67 83 32 14 . 16 41 . 18 . . 219 63 . 12 54 . 87 179 41 20 262 31 854 298 Absorbed by Shields 140 | . . . . . . . . . . . . . . . 140 . . . . . . . . . . Reduced by Siege Mode 22 | . . . . . . . . . . . . . . . . . . 22 . . . . . . . Core Remaining (%) 71 | 100 . 40 . . . 84 92 . . . . . 57 . . . . 82 . . . . 46 . . Volleys Fired 780 | . 13 26 12 12 . 8 44 5 3 . 9 123 31 35 35 37 13 43 100 16 26 30 14 139 6 Largest 7 | . 2 1 2 2 . 2 4 5 5 . 5 5 5 6 6 6 6 6 5 6 5 2 4 7 1 Hottest 525 | . 60 75 131 73 . 73 208 189 189 . 194 195 195 255 184 194 234 234 425 525 393 300 236 516 88 Shots Fired 1933 | . 26 26 15 21 . 16 161 23 7 . 31 259 79 127 117 62 65 116 216 57 38 36 41 388 6 Gun 1265 | . 26 26 15 20 . 16 161 23 5 . 31 166 29 26 14 19 39 71 122 54 35 26 39 296 6 Cannon 589 | . . . . . . . . . . . . 79 43 101 103 22 26 40 90 3 . 6 . 76 . Launcher 79 | . . . . 1 . . . . 2 . . 14 7 . . 21 . 5 4 . 3 4 2 16 . Special . | . . . . . . . . . . . . . . . . . . . . . . . . . . Kinetic 643 | . 13 . . 11 . 8 100 13 3 . 21 8 . 20 21 5 31 61 90 9 5 6 22 196 . Thermal 727 | . 13 26 15 . . . 55 10 2 . 5 79 43 97 96 22 31 50 3 26 5 20 8 115 6 Explosive 46 | . . . . 1 . . . . . . . 8 3 . . . . 5 4 . 3 4 2 16 . Electromagnetic 329 | . . . . 9 . 8 6 . 2 . 5 102 4 4 . 35 3 . 64 14 7 6 . 60 . Phasic 188 | . . . . . . . . . . . . 62 29 6 . . . . 55 8 18 . 9 1 . Robot Hit Streak 21 | . 6 10 2 7 . 8 10 17 7 . 10 21 16 8 10 7 10 15 10 11 6 12 6 17 1 Robot Miss Streak 12 | . 3 2 2 6 . 6 12 2 . . 4 6 4 5 10 4 7 6 4 2 6 3 4 4 7 Penetration Max 1 | . . . . . . . . . . . . . . . . . 1 . 1 . . 1 . 1 . Secondary Targets 12 | . 1 . . . . . 2 . . . 1 . . . . . . 1 . 1 1 . 2 3 . Max Gunslinging Chain 2 | . 1 . . . . . 1 . . . 1 . . . . . . 1 . 1 1 . 1 2 . Capacitor 6 | . . . . . . . . . . . . . . . . . . . . . . . . . 6 Shots Hit Robots 1033 | . 19 19 10 12 . 9 84 16 4 . 20 121 13 37 54 25 32 64 108 35 8 23 25 288 7 Core Hits 947 | . 8 6 8 14 . 9 39 9 6 . 17 185 11 25 21 36 14 45 99 17 8 113 21 235 1 Critical Hits 46 | . . 1 . . . . . . . . . . . . . 1 2 5 16 1 . 2 1 17 . Critical Kills 23 | . . . . . . . . . . . . . . . . 1 2 5 7 1 . 1 1 5 . Critical Parts Destroyed 21 | . . 1 . . . . . . . . . . . . . . . . 8 . . 1 . 11 . Melee Attacks 141 | . . 5 3 . . . . 3 . . 19 . . . . . . . 7 . 21 3 17 56 7 Impact 35 | . . 1 3 . . . . 3 . . . . . . . . . . . . 9 3 2 7 7 Slashing 85 | . . 4 . . . . . . . . 19 . . . . . . . 7 . 12 . 13 30 . Piercing 21 | . . . . . . . . . . . . . . . . . . . . . . . 2 19 . Sneak Attacks 12 | . . . . . . . . 2 . . . . . . . . . . 4 . . . . 5 1 Combat Hostiles . | . . . . . . . . . . . . . . . . . . . . . . . . . . Follow-up Attacks 17 | . . 1 . . . . . . . . . . . . . . . . . . . . . 16 . Damage Inflicted 51340 | . 220 519 237 296 . 243 1122 500 186 . 346 6067 923 1574 2412 2384 1220 3245 7663 828 459 5318 956 14370 252 Guns 16542 | . 220 382 177 190 . 160 1122 289 84 . 346 2577 198 127 157 244 532 786 1747 753 263 214 564 5333 77 Cannons 12482 | . . . . . . . . . . . . 336 250 1377 2255 240 688 1329 3597 . . 369 . 2041 . Explosions 18968 | . . . . 106 . 83 . . 102 . . 3154 475 70 . 1900 . 1130 1709 75 196 4735 392 4841 . Melee 3264 | . . 137 60 . . . . 211 . . . . . . . . . . 561 . . . . 2120 175 Ramming 84 | . . . . . . . . . . . . . . . . . . . 49 . . . . 35 . Kinetic 9032 | . 115 . . 115 . 90 590 135 41 . 230 75 . 152 296 73 393 689 1955 87 65 99 372 3460 . Thermal 14877 | . 105 382 177 . . 83 466 154 43 . 57 460 250 1352 2116 396 785 1426 488 396 89 2717 126 2732 77 Explosive 11889 | . . . . 106 . . . . . . . 2548 283 . . . . 550 1314 . 196 2133 392 4367 . Electromagnetic 10082 | . . . . 75 . 70 66 . 102 . 59 1763 192 70 . 1915 42 580 2768 246 109 369 . 1656 . Impact 613 | . . 17 60 . . . . 211 . . . . . . . . . . . . . . . 150 175 Slashing 1818 | . . 120 . . . . . . . . . . . . . . . . 561 . . . . 1137 . Piercing 833 | . . . . . . . . . . . . . . . . . . . . . . . . 833 . Phasic 2112 | . . . . . . . . . . . . 1221 198 . . . . . 528 99 . . 66 . . Highest Corruption 18 | . . . . . . . . . . . 5 6 8 1 1 1 1 6 2 2 2 2 2 18 18 Average Corruption 4 | . . . . . . . . . . . 5 5 6 1 1 1 1 2 1 2 2 2 1 6 18 Corruption Purged . | . . . . . . . . . . . . . . . . . . . . . . . . . . Effects 297 | . . . . . . . . . . . 21 114 32 4 8 5 1 8 11 5 7 1 . 71 9 Message Errors 58 | . . . . . . . . . . . 4 22 5 3 2 2 1 1 4 . 4 1 . 7 2 Matter Fused 59 | . . . . . . . . . . . 6 34 8 . . . . . . . . . . 8 3 Heat Flow Errors 22 | . . . . . . . . . . . 2 9 6 . . . . . 2 1 1 . . 1 . Energy Discharges 32 | . . . . . . . . . . . 6 11 1 1 . 2 . 1 . 2 . . . 8 . Parts Rejected 3 | . . . . . . . . . . . . . 1 . . . . . . . . . . 2 . Data Loss (minor) 25 | . . . . . . . . . . . . 8 3 . 3 . . 2 1 . 1 . . 7 . Data Loss (major) 13 | . . . . . . . . . . . 2 8 1 . . . . 1 . . . . . 1 . Misfires 7 | . . . . . . . . . . . . 7 . . . . . . . . . . . . . Misdirections 17 | . . . . . . . . . . . . . . . . . . . . . . . . 14 3 Targeting Errors 51 | . . . . . . . . . . . 1 13 6 . 3 1 . 2 3 2 1 . . 18 1 Weapon Failures 10 | . . . . . . . . . . . . 2 1 . . . . 1 1 . . . . 5 . Overload Shots . | . . . . . . . . . . . . . . . . . . . . . . . . . . Overflow Damage 1634 | . . 6 . . . . . . . . . 35 90 164 189 70 20 147 275 . 16 62 1 547 12 Projectiles 981 | . . . . . . . . . . . . . 90 164 189 38 20 86 214 . . 30 . 150 . Explosions 360 | . . . . . . . . . . . . 35 . . . 32 . 61 34 . 16 32 1 149 . Melee 293 | . . 6 . . . . . . . . . . . . . . . . 27 . . . . 248 12 Knockbacks 22 | . . . . . . . . 1 . . . . . 1 1 . . . 15 . . . . 3 1 Impact 5 | . . . . . . . . 1 . . . . . . . . . . . . . . . 3 1 Kinetic 14 | . . . . . . . . . . . . . . 1 1 . . . 12 . . . . . . Secondary 3 | . . . . . . . . . . . . . . . . . . . 3 . . . . . . Self-Inflicted Damage 997 | . . . . 39 . 5 . . 18 . . 379 75 . . 38 . 64 36 . 37 39 11 256 . Shots 38 | . . . . 1 . 1 . . 1 . . 16 3 . . 2 . 1 2 . 1 2 2 6 . Rammed 10 | . . 1 . . . . . . . . . . . . . . . . 1 . . . . 8 . Targets Rammed 11 | . . 1 . . . . . . . . . . . . . . . . 1 . . . . 9 . Kicked 1 | . . . . . . . . . . . . . . . . . . . . . . . . 1 . Crushed . | . . . . . . . . . . . . . . . . . . . . . . . . . . Highest Temperature 468 | . 96 95 48 . . 3 255 123 72 . 230 295 320 272 257 216 282 392 287 453 339 258 126 468 335 Average Temperature 98 | . 46 31 11 . . 3 69 46 44 . 109 85 119 52 82 94 98 138 85 171 107 103 62 138 170 Received Heat Transfer 2609 | . 138 186 21 12 . . 162 18 . . . 193 96 36 70 102 36 . 312 54 81 207 . 885 . Effects 24 | . . . . . . . . . . . . 2 7 . . . . 3 1 4 1 . . 6 . Shutdowns 3 | . . . . . . . . . . . . . . . . . . 2 . . . . . 1 . Energy Bleed 7 | . . . . . . . . . . . . 2 1 . . . . 1 1 . . . . 2 . Interference 13 | . . . . . . . . . . . . . 6 . . . . . . 3 1 . . 3 . Damage (minor) 1 | . . . . . . . . . . . . . . . . . . . . 1 . . . . . Siege Activations 2 | . . . . . . . . . . . . . . . . . . 1 1 . . . . . . Total Turns 33 | . . . . . . . . . . . . . . . . . . 31 2 . . . . . . Longest Duration 31 | . . . . . . . . . . . . . . . . . . 31 2 . . . . . . Robots Corrupted 33 | . . . . . . . . . . . . 5 . . . 13 . 1 10 . . . . 4 . Combat Hostiles 30 | . . . . . . . . . . . . 5 . . . 12 . 1 9 . . . . 3 . Parts Fried 78 | . . . . . . . 1 . . . . 15 . . . 24 . 6 18 . . 2 . 12 . Impact Corruptions 7 | . . . . . . . . . . . . . . . . . . . 2 . . . . 2 3 Robots Melted 3 | . 1 . . . . . . . . . . . . . . . . . . 1 . . . 1 . Combat Hostiles 3 | . 1 . . . . . . . . . . . . . . . . . . 1 . . . 1 . Parts Melted 17 | . 3 . . 2 . . . . . . . . . . . . . 1 2 . . 3 . 6 . Heat Transferred 15400 | . 250 666 333 . . 100 925 296 74 . 111 325 125 750 1175 275 523 804 475 575 150 3701 200 3456 111 Parts Sabotaged 5 | . . . . . . . . . . . . . . . . . . . . . . . . 5 . Parts Stolen . | . . . . . . . . . . . . . . . . . . . . . . . . . . Parts Stripped . | . . . . . . . . . . . . . . . . . . . . . . . . . . Power Chain Reactions 13 | . . . . . . 2 . . . . . 3 . . . 4 . . 1 1 . . . 2 . Missiles Intercepted . | . . . . . . . . . . . . . . . . . . . . . . . . . . Alert | -11 -10 -10 -9 -9 -9 -8 -8 -7 -7 -7 -7 -7 -6 -6 -6 -6 -6 -6 -5 -5 -5 -5 -4 -4 -4 ------- Run | Scr Mat Min Mat Min Exi Min Mat Fac Low Low Zio Dee Pro Fac Ext Cet Arc Hub Fac Upp Upp War Pro Fac Upp Peak Influence 1832 | . 77 95 221 202 . 154 321 155 . . . . . 256 613 637 400 969 1832 . . . . 1516 . Initial 400 | . . 30 37 7 . . 59 92 . . . . . . 51 196 223 140 400 . . . . 31 . Average 463 | . 50 50 85 151 . 64 196 112 . . . . . 124 285 417 365 569 992 . . . . 735 . Maximum Alert Level 5 | . . . 1 1 . . 1 . . . . . . 1 2 2 2 3 5 . . . . 4 . Low Security (%) 36 | 100 100 100 82 83 . 100 61 100 . . . . . 59 46 16 . 11 . . . . . 13 . Level 1 18 | . . . 17 16 . . 38 . . . . . . 40 34 19 83 25 . . . . . 3 . Level 2 22 | . . . . . . . . . . . . . . . 18 64 16 16 39 . . . . 29 . Level 3 13 | . . . . . . . . . . . . . . . . . . 46 25 . . . . 32 . Level 4 6 | . . . . . . . . . . . . . . . . . . . 17 . . . . 20 . Level 5 2 | . . . . . . . . . . . . . . . . . . . 16 . . . . . . High Security . | . . . . . . . . . . . . . . . . . . . . . . . . . . Max Security . | . . . . . . . . . . . . . . . . . . . . . . . . . . Squads Dispatched 45 | . . . . 1 . . 1 . . . . . . 2 5 . . 3 14 . . . . 19 . Investigation 9 | . . . . 1 . . 1 . . . . . . . 1 . . 1 3 . . . . 2 . Extermination 8 | . . . . . . . . . . . . . . 1 . . . . 3 . . . . 4 . Reinforcement 16 | . . . . . . . . . . . . . . 1 4 . . 2 4 . . . . 5 . Assault 9 | . . . . . . . . . . . . . . . . . . . 4 . . . . 5 . Garrison 3 | . . . . . . . . . . . . . . . . . . . . . . . . 3 . Intercept . | . . . . . . . . . . . . . . . . . . . . . . . . . . Construction Impeded 7 | . . . . . . . . . . . . . . . 2 . . 1 2 . . . . 2 . Haulers Reinforced 2 | . . . . . . . . . . . . . . . . . . . . . . . . 2 . Stealth | -11 -10 -10 -9 -9 -9 -8 -8 -7 -7 -7 -7 -7 -6 -6 -6 -6 -6 -6 -5 -5 -5 -5 -4 -4 -4 --------- Run | Scr Mat Min Mat Min Exi Min Mat Fac Low Low Zio Dee Pro Fac Ext Cet Arc Hub Fac Upp Upp War Pro Fac Upp Distress Signals 22 | . . . 4 . . . 3 . . . . . . . 1 2 . 1 1 . . . . 10 . Communications Jammed . | . . . . . . . . . . . . . . . . . . . . . . . . . . Distress Signals . | . . . . . . . . . . . . . . . . . . . . . . . . . . Times Spotted 465 | . 3 5 16 7 . 9 12 1 5 . 11 52 8 13 25 28 10 15 60 4 3 50 11 112 5 Peak Tracking Total 30 | . 2 2 3 3 . 4 5 1 4 . 4 30 4 4 4 6 1 5 8 3 3 13 4 12 5 Tactical Retreats 25 | . . 3 1 . . 1 1 . . . 2 1 . . . . . 1 4 1 . 3 . 7 . Traps | -11 -10 -10 -9 -9 -9 -8 -8 -7 -7 -7 -7 -7 -6 -6 -6 -6 -6 -6 -5 -5 -5 -5 -4 -4 -4 ------- Run | Scr Mat Min Mat Min Exi Min Mat Fac Low Low Zio Dee Pro Fac Ext Cet Arc Hub Fac Upp Upp War Pro Fac Upp Traps Triggered 7 | . . 1 . . . . 1 . . . . . . . 2 . . 1 2 . . . . . . Indirectly . | . . . . . . . . . . . . . . . . . . . . . . . . . . Trap Hack Attempts . | . . . . . . . . . . . . . . . . . . . . . . . . . . Triggered . | . . . . . . . . . . . . . . . . . . . . . . . . . . Disarmed . | . . . . . . . . . . . . . . . . . . . . . . . . . . Reprogrammed . | . . . . . . . . . . . . . . . . . . . . . . . . . . Reused . | . . . . . . . . . . . . . . . . . . . . . . . . . . Traps Extracted . | . . . . . . . . . . . . . . . . . . . . . . . . . . Installed . | . . . . . . . . . . . . . . . . . . . . . . . . . . Triggered 21 | . . . . . . . . . . . . . . . . . . . 2 . . 19 . . . Machines | -11 -10 -10 -9 -9 -9 -8 -8 -7 -7 -7 -7 -7 -6 -6 -6 -6 -6 -6 -5 -5 -5 -5 -4 -4 -4 ---------- Run | Scr Mat Min Mat Min Exi Min Mat Fac Low Low Zio Dee Pro Fac Ext Cet Arc Hub Fac Upp Upp War Pro Fac Upp Machines Disabled 74 | . . . . . . 1 . . . . 4 5 . 5 5 7 3 20 12 . . . . 12 . Max in Single Turn 14 | . . . . . . 1 . . . . 1 1 . 1 1 2 1 14 5 . . . . 3 . Garrison Access 2 | . . . . . . . . . . . . . . . . . . 1 . . . . . 1 . Network Hub 1 | . . . . . . . . . . . . . . . . . . 1 . . . . . . . Machines Sabotaged . | . . . . . . . . . . . . . . . . . . . . . . . . . . Garrisons Compromised . | . . . . . . . . . . . . . . . . . . . . . . . . . . Overloaded Fab Kills . | . . . . . . . . . . . . . . . . . . . . . . . . . . Fab Network Shutdowns . | . . . . . . . . . . . . . . . . . . . . . . . . . . Hacking | -11 -10 -10 -9 -9 -9 -8 -8 -7 -7 -7 -7 -7 -6 -6 -6 -6 -6 -6 -5 -5 -5 -5 -4 -4 -4 --------- Run | Scr Mat Min Mat Min Exi Min Mat Fac Low Low Zio Dee Pro Fac Ext Cet Arc Hub Fac Upp Upp War Pro Fac Upp Machines Accessed 44 | . 2 1 . 1 1 . . 2 1 . . . . 7 5 2 1 2 5 . . 10 . 4 . Terminals 24 | . 2 . . . . . . 2 . . . . . 6 5 2 . 1 3 . . . . 3 . Fabricators . | . . . . . . . . . . . . . . . . . . . . . . . . . . Repair Stations 3 | . . . . . . . . . . . . . . 1 . . . . 2 . . . . . . Recycling Units . | . . . . . . . . . . . . . . . . . . . . . . . . . . Scanalyzers . | . . . . . . . . . . . . . . . . . . . . . . . . . . Garrison Access 2 | . . . . . . . . . . . . . . . . . . 1 . . . . . 1 . Total Hacks 112 | . 2 1 . 1 3 . . 3 1 . . . . 12 11 2 25 5 15 . . 21 . 10 . Successful 75 | . 1 1 . 1 3 . . 1 1 . . . . 6 4 2 25 2 5 . . 21 . 2 . Failed 37 | . 1 . . . . . . 2 . . . . . 6 7 . . 3 10 . . . . 8 . Catastrophic 8 | . 1 . . . . . . . . . . . . 1 1 . . . 2 . . . . 3 . Database Lockouts . | . . . . . . . . . . . . . . . . . . . . . . . . . . Manual 47 | . 2 . . . . . . . . . 5 . . 8 11 1 . 3 8 . . . . 9 . Terminals 52 | . 2 . . . . . . 3 . . . . . 10 11 2 . 3 12 . . . . 9 . Fabricators . | . . . . . . . . . . . . . . . . . . . . . . . . . . Repair Stations 5 | . . . . . . . . . . . . . . 2 . . . . 3 . . . . . . Recycling Units . | . . . . . . . . . . . . . . . . . . . . . . . . . . Scanalyzers . | . . . . . . . . . . . . . . . . . . . . . . . . . . Garrison Access 3 | . . . . . . . . . . . . . . . . . . 2 . . . . . 1 . Terminal Hacks 61 | . 1 1 . 1 3 . . 1 1 . . . . 1 3 2 25 . 1 . . 21 . . . Record 45 | . . . . . 3 . . . . . . . . . . 1 25 . . . . 16 . . . Prototype ID Bank 4 | . . . . . . . . . . . . . . . . . . . . . . 4 . . . Open Door 6 | . . 1 . 1 . . . . 1 . . . . . 1 1 . . . . . 1 . . . Branch Access Points 1 | . . . . . . . . 1 . . . . . . . . . . . . . . . . . Unreport Threat 1 | . . . . . . . . . . . . . . . 1 . . . . . . . . . . Locate Traps 1 | . . . . . . . . . . . . . . 1 . . . . . . . . . . . Recall Investigation 1 | . . . . . . . . . . . . . . . 1 . . . . . . . . . . Recall Extermination 1 | . . . . . . . . . . . . . . . . . . . 1 . . . . . . Zone Layout 1 | . 1 . . . . . . . . . . . . . . . . . . . . . . . . Fabricator Hacks . | . . . . . . . . . . . . . . . . . . . . . . . . . . Repair Station Hacks 4 | . . . . . . . . . . . . . . 2 . . . . 2 . . . . . . Scan Component 2 | . . . . . . . . . . . . . . 1 . . . . 1 . . . . . . Repair 2 | . . . . . . . . . . . . . . 1 . . . . 1 . . . . . . Recycling Unit Hacks . | . . . . . . . . . . . . . . . . . . . . . . . . . . Scanalyzer . | . . . . . . . . . . . . . . . . . . . . . . . . . . Garrison Access Hacks 2 | . . . . . . . . . . . . . . . . . . 1 . . . . . 1 . Seal Access 2 | . . . . . . . . . . . . . . . . . . 1 . . . . . 1 . Unauthorized Hacks 8 | . . . . . . . . . . . . . . 3 1 . . 1 2 . . . . 1 . Terminals 8 | . . . . . . . . . . . . . . 3 1 . . 1 2 . . . . 1 . Track 1 | . . . . . . . . . . . . . . . . . . . 1 . . . . . . Botnet 7 | . . . . . . . . . . . . . . 3 1 . . 1 1 . . . . 1 . Fabricators . | . . . . . . . . . . . . . . . . . . . . . . . . . . Repair Stations . | . . . . . . . . . . . . . . . . . . . . . . . . . . Recycling Units . | . . . . . . . . . . . . . . . . . . . . . . . . . . Scanalyzers . | . . . . . . . . . . . . . . . . . . . . . . . . . . Garrison Access . | . . . . . . . . . . . . . . . . . . . . . . . . . . Data Cores Recovered . | . . . . . . . . . . . . . . . . . . . . . . . . . . Used . | . . . . . . . . . . . . . . . . . . . . . . . . . . Hacking Detections 23 | . 1 . . . . . . 1 . . . . . 7 5 . . 1 5 . . . . 3 . Full Trace Events 5 | . . . . . . . . . . . . . . . 1 . . . 2 . . . . 2 . Feedback Events . | . . . . . . . . . . . . . . . . . . . . . . . . . . Feedback Blocked . | . . . . . . . . . . . . . . . . . . . . . . . . . . Robot Schematics Acquired . | . . . . . . . . . . . . . . . . . . . . . . . . . . Robots Built . | . . . . . . . . . . . . . . . . . . . . . . . . . . Matter . | . . . . . . . . . . . . . . . . . . . . . . . . . . Time . | . . . . . . . . . . . . . . . . . . . . . . . . . . Total Robot Build Rating . | . . . . . . . . . . . . . . . . . . . . . . . . . . Part Schematics Acquired . | . . . . . . . . . . . . . . . . . . . . . . . . . . Parts Built . | . . . . . . . . . . . . . . . . . . . . . . . . . . Matter . | . . . . . . . . . . . . . . . . . . . . . . . . . . Time . | . . . . . . . . . . . . . . . . . . . . . . . . . . Total Part Build Rating . | . . . . . . . . . . . . . . . . . . . . . . . . . . Parts Repaired 2 | . . . . . . . . . . . . . . 1 . . . . 1 . . . . . . Time 50 | . . . . . . . . . . . . . . 28 . . . . 22 . . . . . . Parts Recycled . | . . . . . . . . . . . . . . . . . . . . . . . . . . Recycled Matter . | . . . . . . . . . . . . . . . . . . . . . . . . . . Retrieved Matter . | . . . . . . . . . . . . . . . . . . . . . . . . . . Retrieved Components . | . . . . . . . . . . . . . . . . . . . . . . . . . . Parts Scanalyzed . | . . . . . . . . . . . . . . . . . . . . . . . . . . Part Schematics Acquired . | . . . . . . . . . . . . . . . . . . . . . . . . . . Parts Damaged . | . . . . . . . . . . . . . . . . . . . . . . . . . . Bothacking | -11 -10 -10 -9 -9 -9 -8 -8 -7 -7 -7 -7 -7 -6 -6 -6 -6 -6 -6 -5 -5 -5 -5 -4 -4 -4 ------------ Run | Scr Mat Min Mat Min Exi Min Mat Fac Low Low Zio Dee Pro Fac Ext Cet Arc Hub Fac Upp Upp War Pro Fac Upp Used RIF Installer . | . . . . . . . . . . . . . . . . . . . . . . . . . . Robots Hacked . | . . . . . . . . . . . . . . . . . . . . . . . . . . Non-combat . | . . . . . . . . . . . . . . . . . . . . . . . . . . Combat . | . . . . . . . . . . . . . . . . . . . . . . . . . . Robot Hacks Applied . | . . . . . . . . . . . . . . . . . . . . . . . . . . Relay Couplers Released . | . . . . . . . . . . . . . . . . . . . . . . . . . . Robots Rewired 13 | . . . . . . . . . . . . . . . 9 . . . . . . 4 . . . Allies Hacked . | . . . . . . . . . . . . . . . . . . . . . . . . . . Hacks Repelled . | . . . . . . . . . . . . . . . . . . . . . . . . . . Allies | -11 -10 -10 -9 -9 -9 -8 -8 -7 -7 -7 -7 -7 -6 -6 -6 -6 -6 -6 -5 -5 -5 -5 -4 -4 -4 -------- Run | Scr Mat Min Mat Min Exi Min Mat Fac Low Low Zio Dee Pro Fac Ext Cet Arc Hub Fac Upp Upp War Pro Fac Upp Total Allies 19 | . . . . . . . . . . . 2 . . . 13 . . . . . . 4 . . . Largest Group 9 | . . . . . . . . . . . 2 2 . . 9 9 1 . . . . 4 . . . Highest-Rated Group 405 | . . . . . . . . . . . 188 188 . . 405 405 129 . . . . 164 . . . Highest-Rated Ally 156 | . . . . . . . . . . . 94 94 . . 156 156 129 . . . . 41 . . . Total Orders 6 | . . . . . . . . . . . . . . . . . . . . . . 2 . 4 . STAY 1 | . . . . . . . . . . . . . . . . . . . . . . 1 . . . FOLLOW 1 | . . . . . . . . . . . . . . . . . . . . . . 1 . . . EXPLORE 3 | . . . . . . . . . . . . . . . . . . . . . . . . 3 . RETURN 1 | . . . . . . . . . . . . . . . . . . . . . . . . 1 . Ally Attacks 309 | . . . . . . . . . . . 57 59 . . 124 38 . . . . . 31 . . . Total Damage 8243 | . . . . . . . . . . . 1654 1879 . . 2621 980 . . . . . 1109 . . . Kills 63 | . . . . . . . . . . . 12 13 . . 22 8 . . . . . 8 . . . Allies Corrupted . | . . . . . . . . . . . . . . . . . . . . . . . . . . Allies Melted . | . . . . . . . . . . . . . . . . . . . . . . . . . . Intel | -11 -10 -10 -9 -9 -9 -8 -8 -7 -7 -7 -7 -7 -6 -6 -6 -6 -6 -6 -5 -5 -5 -5 -4 -4 -4 ------- Run | Scr Mat Min Mat Min Exi Min Mat Fac Low Low Zio Dee Pro Fac Ext Cet Arc Hub Fac Upp Upp War Pro Fac Upp Robot Analysis Total . | . . . . . . . . . . . . . . . . . . . . . . . . . . Derelict Logs Recovered 10 | . . 1 . 1 . . . . 3 1 1 . 1 . . . . . . 1 . . . . 1 Drone Launches 6 | . . . . . . . . . . . . . . . . . . . . . . . . 6 . Drone Recoveries 2 | . . . . . . . . . . . . . . . . . . . . . . . . 2 . Exploration | -11 -10 -10 -9 -9 -9 -8 -8 -7 -7 -7 -7 -7 -6 -6 -6 -6 -6 -6 -5 -5 -5 -5 -4 -4 -4 ------------- Run | Scr Mat Min Mat Min Exi Min Mat Fac Low Low Zio Dee Pro Fac Ext Cet Arc Hub Fac Upp Upp War Pro Fac Upp Turns Passed 22548 | 58 187 372 484 168 305 77 647 374 598 868 2049 4287 824 827 1257 923 356 591 1553 539 690 1871 554 1947 142 Spaces Moved 11391 | 56 154 264 326 121 306 46 265 179 325 458 932 1802 388 384 617 401 160 226 688 274 353 1035 298 1121 212 Core 165 | 7 . 24 . . . . . . . . . 29 4 . . . . . . . . . . 101 . Treads 3670 | . . . . . . . 183 177 325 458 932 724 . . . 194 160 215 55 115 . 45 4 83 . Legs 5363 | . . . . . . . . . . . . 953 384 384 617 207 . 11 633 159 353 990 294 378 . Wheels 1422 | 49 154 240 326 121 306 46 82 2 . . . 96 . . . . . . . . . . . . . Hover 141 | . . . . . . . . . . . . . . . . . . . . . . . . 47 94 Flight 630 | . . . . . . . . . . . . . . . . . . . . . . . . 512 118 Fastest Speed 40 | 50 80 80 80 100 100 100 130 140 180 180 160 140 169 169 169 169 180 180 160 160 160 129 140 40 40 Average Speed 160 | 85 86 105 98 100 100 116 171 179 180 189 197 199 187 169 169 197 184 186 162 168 160 154 156 96 51 Slowest Speed 1950 | 100 100 350 100 100 100 130 200 180 180 200 200 1700 1950 169 169 202 200 250 200 180 160 180 180 276 80 Overloaded Moves . | . . . . . . . . . . . . . . . . . . . . . . . . . . Propulsion Burnouts . | . . . . . . . . . . . . . . . . . . . . . . . . . . Robots Hopped 7 | . . . . . . . . . . . . . . . . . . . . . . . . 7 . Cave-ins Triggered 1 | . . . . . . . . . . . . 1 . . . . . . . . . . . . . Exploration Rate (%) 45 | 3 23 70 31 20 67 19 20 7 70 63 75 84 52 14 77 78 80 25 20 53 30 88 45 29 32 Regions Visited 25 Branch Regions 18 Pre-discovered Areas 3 | . . . . . . . . . . . 1 . . . . . . . . 1 . . . . 1 Known Exits Taken 6 | . . . . 1 . . . 1 1 . . . . 1 . . . 1 . . . . . 1 . Unknown Exits Taken 19 | 1 1 1 1 . 1 1 1 . . 1 1 1 1 . 1 1 1 . 1 1 1 1 1 . . Scrap Searched 14 | . . 1 . . . . . . 4 2 1 . 1 . . . . . . 1 1 . 1 . 2 Spaces Dug 272 | . . . . 7 . . . 1 . . 6 47 37 39 17 2 2 3 56 5 22 3 14 11 . Terrain Destroyed 1376 | . . . . 7 . 9 . 1 . . 6 145 83 59 38 7 19 240 204 12 73 121 106 246 . Melee 42 | . . . . . . . . 1 . . 6 . . . . . . . 2 . 16 3 13 1 . Projectile 497 | . . . . . . . . . . . . 82 59 59 38 7 19 22 73 12 18 3 35 70 . AOE 837 | . . . . 7 . 9 . . . . . 63 24 . . . . 218 129 . 39 115 58 175 . Terrain Rammed . | . . . . . . . . . . . . . . . . . . . . . . . . . . Walls Destroyed . | . . . . . . . . . . . . . . . . . . . . . . . . . . Machines Disabled . | . . . . . . . . . . . . . . . . . . . . . . . . . . Actions | -11 -10 -10 -9 -9 -9 -8 -8 -7 -7 -7 -7 -7 -6 -6 -6 -6 -6 -6 -5 -5 -5 -5 -4 -4 -4 --------- Run | Scr Mat Min Mat Min Exi Min Mat Fac Low Low Zio Dee Pro Fac Ext Cet Arc Hub Fac Upp Upp War Pro Fac Upp Total 14015 | 63 181 322 468 150 305 53 352 213 335 460 1099 2287 428 479 750 483 186 320 936 307 414 1246 334 1609 235 Wait 842 | . 7 13 100 6 . . 8 17 1 . 89 249 . 38 10 10 7 11 48 3 13 40 1 171 . Move 11351 | 55 153 263 325 120 305 45 264 178 324 457 931 1800 387 383 616 400 159 225 687 273 352 1034 297 1106 212 Hop 7 | . . . . . . . . . . . . . . . . . . . . . . . . 7 . Pick Up 166 | 3 2 2 14 4 . . 10 3 1 1 20 27 3 6 . 4 1 5 20 2 1 12 . 23 2 Fast Attach 134 | 5 2 4 4 . . . 2 1 . . 11 17 . 2 . 8 3 6 8 . . 19 1 39 2 Attach 97 | . . . 1 . . . 5 1 1 . 2 8 4 2 . 2 . 8 15 4 . 12 2 28 2 Detach 56 | . . . 2 . . . . . . . 6 10 . 1 . 2 . 5 12 . . 10 3 5 . Swap 139 | . 2 4 3 3 . . 11 3 3 1 2 14 3 8 . 7 1 6 19 7 5 11 2 24 . Drop 173 | . 2 5 4 5 . . 8 2 2 1 10 38 . 4 . 13 2 11 16 2 . 24 1 19 4 Fire 780 | . 13 26 12 12 . 8 44 5 3 . 9 123 31 35 35 37 13 43 100 16 26 30 14 139 6 Melee 115 | . . 4 3 . . . . 3 . . 19 . . . . . . . 7 . 17 3 13 39 7 Ram 5 | . . 1 . . . . . . . . . . . . . . . . . . . . . 4 . Kick 3 | . . . . . . . . . . . . . . . . . . . . . . . . 3 . Crush 3 | . . . . . . . . . . . . . . . . . . . 1 . . . . 2 . Escape Stasis 13 | . . . . . . . . . . . . 1 . . 9 . . . 3 . . . . . . Rewire 131 | . . . . . . . . . . . . . . . 80 . . . . . . 51 . . . Trap . | . . . . . . . . . . . . . . . . . . . . . . . . . . Miscellaneous . | . . . . . . . . . . . . . . . . . . . . . . . . . . Route ------- -11/Scrapyard -10/Materials (discovered 2 exits: [*Mat] / *Min) -10/Mines -9/Materials -9/Mines (discovered 2 exits: [*Mat] / *Exi) -9/Exiles -8/Mines -8/Materials -7/Factory (discovered 2 exits: *Low x2) -7/Lower Caves -7/Lower Caves (discovered 2 exits: *Fac / *Zio) -7/Zion (discovered 2 exits: [*Dee] / [*Pro]) -7/Deep Caves -6/Proximity Caves -6/Factory (discovered 5 exits: Fac x2 / Low x2 / *Ext) -6/Extension (discovered 2 exits: *Fac / *Cet) -6/Cetus (discovered 2 exits: *Fac / *Arc) -6/Archives (discovered 3 exits: *Fac / *Hub x2) -6/Hub_04(d) -5/Factory (discovered 2 exits: *Fac / [*Upp]) -5/Upper Caves -5/Upper Caves -5/Warlord -4/Proximity Caves -4/Factory -4/Upper Caves History --------- Turn | Location | Event 19 | -11/Scrapyard | Discovered new exit (range 16) 59 | -11/Scrapyard | Entered Materials 202 | -10/Materials | Discovered new exit (range 15) 227 | -10/Materials | Discovered new exit (range 10) 246 | -10/Materials | Entered Mines 251 | -10/Mines | Met a Derelict who couldn't figure out how to use a Trap Extractor 300 | -10/Mines | Build established: Mutant 310 | -10/Mines | Learned Materials machine intel 401 | -10/Mines | Core integrity fell below 50% 609 | -10/Mines | Discovered new exit (range 7) 618 | -10/Mines | Entered Materials 618 | -9/Materials | Evolved 2 slots: Utility x2 619 | -9/Materials | Loaded intel: 61 machine locations 997 | -9/Materials | Discovered new exit (range 7) 1102 | -9/Materials | Entered Mines 1131 | -9/Mines | Met a Derelict shopkeep closing up shop 1187 | -9/Mines | Met a Derelict bent on vengeance 1230 | -9/Mines | Discovered new exit (range 4) 1249 | -9/Mines | Identified exit to Exiles 1265 | -9/Mines | Deemed a non-threat by the Exiles lab entrance 1270 | -9/Mines | Entered Exiles 1295 | -9/Exiles | Met 8R-AWN 1311 | -9/Exiles | Met EX-HEX 1348 | -9/Exiles | Met EX-DEC 1376 | -9/Exiles | Met EX-BIN 1565 | -9/Exiles | Discovered new exit (range 12) 1575 | -9/Exiles | Entered Mines 1642 | -8/Mines | Discovered new exit (range 9) 1652 | -8/Mines | Entered Materials 1652 | -8/Materials | Evolved 2 slots: Weapon x2 2080 | -8/Materials | Build established: Tank 2234 | -8/Materials | Discovered new exit (range 5) 2299 | -8/Materials | Entered Factory 2299 | -7/Factory | Evolved 2 slots: Propulsion x1, Weapon x1 2306 | -7/Factory | Identified exit to Lower Caves 2340 | -7/Factory | Found Prototype Launcher 2341 | -7/Factory | Identified Rocket Array 2673 | -7/Factory | Entered Lower Caves 2880 | -7/Lower Caves | Learned location of 1 exit from Factory 2888 | -7/Lower Caves | Build established: Scavenger-Tank 3174 | -7/Lower Caves | Learned Factory trap positions 3226 | -7/Lower Caves | Identified exit to Lower Caves 3271 | -7/Lower Caves | Entered another Lower Caves area 3289 | -7/Lower Caves | Discovered new exit (range 16) 3457 | -7/Lower Caves | Learned 12 Factory zone layouts 3683 | -7/Lower Caves | Encountered a Warlord checkpoint 4113 | -7/Lower Caves | Discovered new exit (range 6) 4139 | -7/Lower Caves | Entered Zion 4203 | -7/Zion | Given the Hacking Drone Bay 4204 | -7/Zion | Found Prototype Device 4204 | -7/Zion | Identified Hacking Drone Bay 4400 | -7/Zion | Given A8's code to call for help 4426 | -7/Zion | Discovered new exit (range 15) 4820 | -7/Zion | Learned location of 1 exit from Factory 5008 | -7/Zion | Acquired unknown access codes intercepted by a Zionite 5256 | -7/Zion | Opened final containment barrier to the Deep Caves 5473 | -7/Zion | Found Prototype Processor 5473 | -7/Zion | Identified Exp. Terrain Scan Processor 5481 | -7/Zion | Found Prototype Processor 5481 | -7/Zion | Identified Exp. Armor Integrity Analyzer 5488 | -7/Zion | Found Prototype Processor 5488 | -7/Zion | Identified Exp. Melee Analysis Suite 5494 | -7/Zion | Found Prototype Processor 5494 | -7/Zion | Identified Spectral Analyzer 5497 | -7/Zion | Found Prototype Processor 5497 | -7/Zion | Identified Exp. Target Analyzer 5656 | -7/Zion | Build established: Scavenger-Mutant 5696 | -7/Zion | Enhanced Grunt warped into view, answering call for help 5697 | -7/Zion | Enhanced Grunt warped into view, answering call for help 5703 | -7/Zion | Attacked by Zionites 5852 | -7/Zion | Destroyed Imprinter 5861 | -7/Zion | Extracted access codes from Imprinter's data core 6134 | -7/Zion | Build established: Scavenger-Tank 6172 | -7/Zion | Discovered new exit (range 3) 6172 | -7/Zion | Saw the warning signs outside the Deep Caves entrance 6188 | -7/Zion | Entered Deep Caves 6188 | -7/Deep Caves | Accompanied by 2 allies 6499 | -7/Deep Caves | Z-Facility disabled 7010 | -7/Deep Caves | Found Prototype Protection 7010 | -7/Deep Caves | Identified Zio. Weapon Casing 7024 | -7/Deep Caves | Found Prototype Protection 7024 | -7/Deep Caves | Identified Zio. Heavy Carapace 7518 | -7/Deep Caves | Spotted as-41714 7531 | -7/Deep Caves | Destroyed as-41714 7650 | -7/Deep Caves | Found Prototype Device 7650 | -7/Deep Caves | Identified Exp. Thermal Shield 7807 | -7/Deep Caves | Exposed GOLEM chamber 7822 | -7/Deep Caves | Found GOLEM Unit 7953 | -7/Deep Caves | Build established: Scavenger-Gunner 8030 | -7/Deep Caves | Triggered Deep Caves wall 8063 | -7/Deep Caves | Spotted AS-32941 8088 | -7/Deep Caves | Lost 3 parts (2n1u) 8097 | -7/Deep Caves | Destroyed 38 combat bots 8107 | -7/Deep Caves | Found GOLEM Unit 8128 | -7/Deep Caves | Spotted AS-53918 8144 | -7/Deep Caves | Destroyed AS-53918 8621 | -7/Deep Caves | Build established: Golem 9505 | -7/Deep Caves | Found Zio. Weapon Casing 9526 | -7/Deep Caves | Build established: Gunner 9991 | -7/Deep Caves | Found GOLEM Unit 10259 | -7/Deep Caves | Found Zio. Weapon Casing 10299 | -7/Deep Caves | Found Zio. Weapon Casing 10331 | -7/Deep Caves | Found Zio. Weapon Casing 10433 | -7/Deep Caves | Crushed by falling debris 10458 | -7/Deep Caves | Discovered new exit (range 6) 10475 | -7/Deep Caves | Entered Proximity Caves 10494 | -6/Proximity Caves | Attracted the attention of an 0b10 checkpoint 10806 | -6/Proximity Caves | Learned Factory stockpile data 10985 | -6/Proximity Caves | Build established: Tank 11062 | -6/Proximity Caves | Discovered new exit (range 11) 11179 | -6/Proximity Caves | Received a Behemoth hack from an annoying Tinkerer 11299 | -6/Proximity Caves | Entered Factory 11299 | -6/Factory | Evolved 2 slots: Power x1, Weapon x1 11300 | -6/Factory | Identified exit to Factory 11300 | -6/Factory | Identified exit to Lower Caves 11301 | -6/Factory | Identified exit to Extension 11302 | -6/Factory | Loaded intel: 119 trap records 11597 | -6/Factory | Build established: Executioner 11607 | -6/Factory | Found Powered Armor 11716 | -6/Factory | Repaired Neutrino Core 12070 | -6/Factory | Build established: Hauler-Gunner 12126 | -6/Factory | Entered Extension 12210 | -6/Extension | Rescued a captive Derelict 12393 | -6/Extension | Rescued a captive Derelict 12393 | -6/Extension | Rescued a captive Derelict 12448 | -6/Extension | Rescued A7 12800 | -6/Extension | Spotted B-75 Beast 12811 | -6/Extension | Allies destroyed B-75 Beast 12830 | -6/Extension | Spotted B-75 Beast 12901 | -6/Extension | Disrupted transfer network 13043 | -6/Extension | Discovered new exit (range 15) 13045 | -6/Extension | Discovered exit to Factory (range 15) 13383 | -6/Extension | Entered Cetus 13383 | -6/Cetus | Accompanied by 9 allies (A7) 13388 | -6/Cetus | Acquired a Cetus Manufacturing Module code from A7 13409 | -6/Cetus | Spotted Cetus Guard 13409 | -6/Cetus | Spotted Cetus Guard 13412 | -6/Cetus | Spotted Cetus Guard 13415 | -6/Cetus | Spotted Cetus Guard 13415 | -6/Cetus | Allies destroyed Cetus Guard 13424 | -6/Cetus | Allies destroyed Cetus Guard 13431 | -6/Cetus | Allies destroyed Cetus Guard 13437 | -6/Cetus | Destroyed Cetus Guard 13549 | -6/Cetus | Started Cetus Manufacturing Module 13551 | -6/Cetus | Cetus Manufacturing Module disabled 13622 | -6/Cetus | Escorted A7 to Cetus Mainframe 13690 | -6/Cetus | Found a strange terminal 13765 | -6/Cetus | Discovered new exit (range 16) 13818 | -6/Cetus | Spotted Cetus Guard 13819 | -6/Cetus | Spotted Cetus Guard 13822 | -6/Cetus | Spotted Cetus Guard 13822 | -6/Cetus | Spotted Cetus Guard 13826 | -6/Cetus | Destroyed Cetus Guard 13828 | -6/Cetus | Destroyed Cetus Guard 13830 | -6/Cetus | Destroyed Cetus Guard 13834 | -6/Cetus | Destroyed Cetus Guard 13845 | -6/Cetus | Discovered exit to Factory (range 16) 13855 | -6/Cetus | Met Revision 17 14306 | -6/Cetus | Entered Archives 14306 | -6/Archives | Accompanied by 1 ally (A7) 14311 | -6/Archives | Received a hacking code to weaken MAIN.C 14383 | -6/Archives | Discovered new exit (range 16) 14405 | -6/Archives | Discovered new exit (range 16) 14434 | -6/Archives | Discovered exit to Factory (range 15) 14633 | -6/Archives | Unable to access archive contents 14662 | -6/Archives | Entered Hub_04(d) 14662 | -6/Hub_04(d) | Discovered exit to Factory (range 10) 14708 | -6/Hub_04(d) | Spotted B-75 Beast 14711 | -6/Hub_04(d) | Build established: Scavenger-Executioner 14976 | -6/Hub_04(d) | Network Hub disabled 15062 | -6/Hub_04(d) | Spotted Lightning 15062 | -6/Hub_04(d) | Spotted Lightning 15065 | -6/Hub_04(d) | Spotted Lightning 15070 | -6/Hub_04(d) | Destroyed Lightning 15096 | -6/Hub_04(d) | Destroyed Lightning 15099 | -6/Hub_04(d) | Destroyed Lightning 15120 | -6/Hub_04(d) | Lost 3 parts (1n2w) 15131 | -6/Hub_04(d) | Found Prototype Device 15131 | -6/Hub_04(d) | Identified EM Dispersion Field 15135 | -6/Hub_04(d) | Found Prototype Device 15135 | -6/Hub_04(d) | Identified Exp. Phase Shifter 15147 | -6/Hub_04(d) | Found Prototype Energy Cannon 15147 | -6/Hub_04(d) | Identified EMDS 15173 | -6/Hub_04(d) | Found EMDS 15191 | -6/Hub_04(d) | Found EM Dispersion Field 15253 | -6/Hub_04(d) | Entered Factory 15253 | -5/Factory | Evolved 2 slots: Propulsion x1, Weapon x1 15853 | -5/Factory | First assault squad dispatched 15945 | -5/Factory | Destroyed 11 combat bots 16046 | -5/Factory | Build established: Scavenger-Mutant 16167 | -5/Factory | Repaired Med. Reactive Plating? 16513 | -5/Factory | Discovered new exit (range 12) 16666 | -5/Factory | Discovered new exit (range 14) 16806 | -5/Factory | Entered Upper Caves 16949 | -5/Upper Caves | Learned location of Warlord (-5) 17136 | -5/Upper Caves | Attracted the attention of an 0b10 checkpoint 17301 | -5/Upper Caves | Discovered new exit (range 15) 17345 | -5/Upper Caves | Entered another Upper Caves area 17517 | -5/Upper Caves | Attracted the attention of an 0b10 checkpoint 18019 | -5/Upper Caves | Discovered new exit (range 9) 18035 | -5/Upper Caves | Entered Warlord 18093 | -5/Warlord | System corruption cleaned by Quarantine Array 18139 | -5/Warlord | Discovered new exit (range 12) 18379 | -5/Warlord | Learned Armory trap positions 18379 | -5/Warlord | Learned Research emergency access door positions 18379 | -5/Warlord | Learned Testing emergency access door positions 18379 | -5/Warlord | Learned Research stockpile data 18381 | -5/Warlord | Learned 4 Research zone layouts 18381 | -5/Warlord | Learned 4 Quarantine zone layouts 18383 | -5/Warlord | Learned Quarantine security intel 18383 | -5/Warlord | Learned Factory terminal intel 18383 | -5/Warlord | Learned Factory fabricator intel 18383 | -5/Warlord | Learned Factory garrison access intel 18773 | -5/Warlord | Received a Watcher feed algorithm from an ecstatic Tinkerer 18916 | -5/Warlord | Warlord's base attacked by MAIN.C 18990 | -5/Warlord | Found Prototype Energy Gun 18990 | -5/Warlord | Identified Plasma Storm 19228 | -5/Warlord | Met Warlord 19255 | -5/Warlord | Found Prototype Reactor 19255 | -5/Warlord | Identified Vortex Chain Reactor 19266 | -5/Warlord | Warlord forces counterattacked 19283 | -5/Warlord | Found Prototype Hackware 19283 | -5/Warlord | Identified Ghost Barrier 19295 | -5/Warlord | Found Prototype Device 19295 | -5/Warlord | Identified Thermal Barrier 19416 | -5/Warlord | Found Prototype Processor 19416 | -5/Warlord | Identified Exp. Core Analyzer 19438 | -5/Warlord | Spotted Striker 19454 | -5/Warlord | Allies destroyed Striker 19460 | -5/Warlord | Spotted Striker 19582 | -5/Warlord | Opened side exit 19591 | -5/Warlord | Warlord base infiltrated, sounded retreat 19679 | -5/Warlord | Spotted Executioner 19686 | -5/Warlord | Build established: Hauler-Executioner 19699 | -5/Warlord | Lost 4 parts (1p3n) 19725 | -5/Warlord | Spotted Executioner 19727 | -5/Warlord | Spotted Striker 19732 | -5/Warlord | Core integrity fell below 50% 19762 | -5/Warlord | Lost 3 parts (1p1u1w) 19780 | -5/Warlord | Found Prototype Device 19780 | -5/Warlord | Identified Exp. Shock Absorption System 19819 | -5/Warlord | Spotted Striker 19824 | -5/Warlord | Destroyed Striker 19851 | -5/Warlord | Destroyed 12 combat bots 19855 | -5/Warlord | Found Prototype Device 19874 | -5/Warlord | Identified Adv. Kinecellerator 19906 | -5/Warlord | Entered Proximity Caves 20450 | -4/Proximity Caves | Discovered new exit (range 6) 20460 | -4/Proximity Caves | Entered Factory 20460 | -4/Factory | Evolved 2 slots: Propulsion x2 20461 | -4/Factory | Loaded intel: 20 terminal locations 20462 | -4/Factory | Loaded intel: 6 fabricator locations 20463 | -4/Factory | Loaded intel: 4 garrison access locations 20836 | -4/Factory | Destroyed 11 combat bots 20934 | -4/Factory | Lost 12 parts (1p4n1u6w) 20988 | -4/Factory | Lost 5 parts (2n2u1w) 21141 | -4/Factory | Build established: Scavenger-Mutant 21158 | -4/Factory | Lost 3 parts (2n1u) 21236 | -4/Factory | Lost 5 parts (1p1n3w) 21684 | -4/Factory | Lost 4 parts (3n1w) 21726 | -4/Factory | Garrison activated, responded to threat 21960 | -4/Factory | First assault squad dispatched 22049 | -4/Factory | Core integrity fell below 50% 22084 | -4/Factory | System corruption reached 10% 22103 | -4/Factory | Found Quantum Capacitor 22117 | -4/Factory | Lost 19 parts (1p5n2u11w) 22128 | -4/Factory | Found Unknown Protection 22128 | -4/Factory | Identified Hvy. Insulated Plating 22359 | -4/Factory | Build established: Mutant 22392 | -4/Factory | Discovered new exit (range 5) 22405 | -4/Factory | Identified exit to Upper Caves 22407 | -4/Factory | Entered Upper Caves 22408 | -4/Upper Caves | Encountered a Warlord checkpoint 22440 | -4/Upper Caves | Learned location of Armory (-3) 22536 | -4/Upper Caves | Core integrity fell below 20% 22549 | -4/Upper Caves | Destroyed by S-27 Virus with Autogun Last Messages --------------- 22525_ Dropped Cmb. Gravmag System. 22526_ Dropped Imp. Antigrav System. 22526_ Dropped Field Propulsion Drive. 22529_ Destroyed VTOL Module. 22530_ Wave Gun destroyed. 22531_ System corrupted: Phase Gun targeting data glitched. 22531_ Destroyed Lgt. Nuclear Core. 22532_ Phase Gun destroyed. 22532_ S-27 Virus destroyed. 22535_ Destroyed VTOL Module. 22535_ S-27 Virus system corrupted by crushing effect. 22538_ Acquired Cmb. Gravmag System. 22539_ VTOL Module fries itself beyond repair. 22539_ S-27 Virus misfires. 22540_ Mic. Fission Core destroyed. 22540_ Acquired 27 matter. 22541_ S-27 Virus misfires. 22544_ S-27 Virus destroyed. 22545_ Acquired 22 matter. 22548_ Unknown Ballistic Gun fries itself beyond repair. Map ----- +----------------------------------------------------+ | | | | | | | ?????????????????????????????????????????????????? | | ?????????????????????????????????????????????????? | | ?????????????????????????????????????????????????? | | ?????????????????????????????????????????????????? | | ?????????????????????????????????????????????????? | | ?????????????????????????????????????????????????? | | ?????????????????????????????????????????????????? | | ?????????????????????????????????????????????????? | | ?????????????????????????????????????????????????? | | ?????????????????????????????????????????????????? | | ?????????????????????????????????????????????????? | | ?????????????????????????????????????????????????? | | ?????????????????????????????????????????????????? | | ?????????????????????????????????????????????????? | | ?????????????????????????????????????????????????? | | ?????????????????????????????????????????????????? | | ??????????????????????????###????????????????????? | | ????????? #####??????## ##???????????????????? | | ?????????? $ ###### #????#######???##???? | | ?????????????? #???## #??# #???? | | ?????????????????? ss #??## #?## #???? | | ?????????????????????# s#????## ## ##??? | | ?????????????????????## @#???## ##?? | | ??????????????????????# =##### #?? | | ??????????????????????# = ## ##? | | ??????????????????????#= ### ## | | ??????????????????????# #?## # | | ??????????????????????### #####?## ## | | ????????????????????????## ###????## #?? | | ?????????????????????????####??????# #### | | ?????????????????????????????#####?# | | ?????????????????????????????# #### | | ?????????????????????????????# ### "" | | ??????????????????????????#### ## """" | | ??????????????????????????# """ # | | ??????????????????????###?# " # | | ??????????????????????# ## " # | | ??????????????????????# # """" | | ??????????????????????## ## " | | ???????????????????????## ### | | ????????????????????????# ### ##?## | | ???????????????????????## ######???# | | ???????????????????????# #???????## ## | | ??????????????????????# ## #????????# #### | | ?????????????????????# #### #????????# #??## | | ?????????????????????## #???## #???????## #???# | | ??????????????????????## ??????##???##### !!#?# | +----------------------------------------------------+ Best States ------------- Heat Dissipation 133 Energy Generation 55 Energy Capacity 2315 Matter Stores 300 Matter Capacity 600 Sight Range 23 Terrain Scan Density 1010 Additional Mass Support 9 Armor Coverage 1200 Resistance: KI 30 Resistance: TH 50 Resistance: EX 75 Resistance: EM 75 Weapon Shielding 100 Phase Shifting 20 Evasion (%) 62 Melee Accuracy 12 Armor Integrity Analysis 90 Recoil Reduction 3 Energy Filtering 30 Particle Charging 25 Defensive Hacking 14 Item Schematics ----------------- None Robot Schematics ------------------ None Fabricated ------------ Nothing Alien Tech Used ----------------- None Achievements -------------- None Challenges ------------ None Game ------ Seed PropulsionStormModule Manual? 0 Play Time 02:54:26 Cumulative 1166.8 hours Start 2020.10.30 @ 23:29:08 End 2020.10.31 @ 15:19:30 Sessions 3 Manual Loads 0 Difficulty Rogue Special Mode Halloween2020/ForbiddenLore Game No. 426 Rogue 426 Adventurer 0 Explorer 0 Win Type - Total 26 Types 13/2/7/0/0/0/4/0/0 Lore% 96 Gallery% 96 Achievement% 84 Wizard Run 0 Options --------- ASCII 0 Keyboard 0 Movement Vi Keybinds 0 Fullscreen 0 Font 12/Crisp Map View 76x50 Tactical HUD 1 Map Filters NONE Filters NONE Steam 1 RUN: 2e39f280-a89e-4b57-ac07-8fcf9518086c